[Event "GER-ch Youth-U14 2022"]
[Site "Willingen"]
[Date "2022.06.07"]
[Round "4.7"]
[White "Krüger, Arthur"]
[Black "Winkler, Yonathan"]
[Result "1/2-1/2"]
[ECO "B28"]
[WhiteElo "1988"]
[BlackElo "1699"]
[Annotator "TA"]
[PlyCount "99"]
[EventDate "2022.06.05"]
[EventType "swiss"]
[EventRounds "9"]
[EventCountry "GER"]
[SourceTitle "playchess.com"]
[Source "ChessBase"]
[SourceQuality "1"]
[TimeControl "40/4500+30:900+30"]

{[%evp 16,99,43,27,54,43,51,38,33,10,15,6,27,25,21,24,33,0,0,0,0,-83,-80,-55,-37,-119,-124,-120,-117,-122,-123,-221,-116,-108,-85,-77,-83,-86,-88,-91,-73,-83,-87,-98,-96,-99,-97,-127,-125,-167,-129,-150,-127,-151,-146,-129,-120,-187,-174,-228,-208,-256,-256,-217,-193,-195,-193,-160,0,-122,-77,-205,-198,-211,-212,-187,-11,-128,-11,-11,-11,-17,-11,-16,-18,-24]} 1. e4 {[%emt 0:00:00]} c5 {[%emt 0:00:00]} 2. Nf3 {[%emt 0:00:00]} a6 {[%emt 0:00:00]} 3. c3 {[%emt 0:00:00]} d5 {[%emt 0:00:00]} 4. exd5 {[%emt 0:00:00]} Qxd5 {[%emt 0:00:00]} 5. d4 {[%emt 0:00:00]} Nf6 {[%emt 0:00:00]} 6. Be2 {[%emt 0:00:00]} e6 {[%emt 0:00:00]} 7. O-O {[%emt 0:00:00]} Nc6 {[%emt 0:00:00]} 8. Be3 {[%emt 0:00:00]} cxd4 {[%emt 0:00:00]} 9. Nxd4 {[%emt 0:00:00] 9.cxd4 is vanishing.} Ne5 {[%emt 0:00:00] B28: Sicilian: 2 Nf3 a6 (O'Kelly Variation).} 10. Nd2 {[%emt 0:00:00]} Be7 {[%emt 0:07:46]} 11. f4 {[%emt 0:01:58]} Ng6 {[%emt 0:04:55] White is slightly better.} 12. Bf3 {[%emt 0:08:53]} Qd8 {[%emt 0:02:52] [#]} 13. g3 $146 {[%emt 0:08:58]} ({Predecessor:} 13. Qa4+ Bd7 14. Qb3 Rb8 15. Rae1 O-O 16. Nc4 Nh4 17. Bd1 Nd5 18. Bf2 Qc7 19. Ne5 {½-½ (54) Heppell,I-Ballon,G (2162) Les Dicqs 2003}) 13... e5 {[%emt 0:03:18]} 14. fxe5 {[%emt 0:04:26]} Nxe5 {[%emt 0:00:42]} 15. Bg2 {[%emt 0:00:48]} O-O {[%emt 0:03:59]} 16. Qb3 {[%emt 0:10:28]} Nfg4 {[%emt 0:07:37]} 17. Rae1 {[%emt 0:10:45]} Bc5 {[%emt 0:07:08]} 18. Bd5 {[%emt 0:02:31]} (18. Bxb7 $2 Rb8 19. Qd5 Rxb7 $19) (18. Nc4 $11) 18... a5 $1 $17 {[%emt 0:09:45] ...a4 is the strong threat.} 19. a4 {[%emt 0:02:36]} (19. Bxb7 $2 Rb8 20. Qd5 Bxd4 21. Bxd4 Rxb7 $19) 19... Bd7 {[%emt 0:04:41][%cal Od7a4]} 20. Nc4 {[%emt 0:05:00] [#]} ({Avoid the trap} 20. Qxb7 $2 Rb8 21. Bxf7+ Nxf7 $19) (20. Ne4 $15 Nxe3 21. Nxc5 (21. Rxe3 Bxa4 22. Qa2 Bxd4 $17) 21... Nxf1 22. Rxe5) 20... Bxa4 $1 {[%emt 0:05:25][%mdl 512]} 21. Qxa4 {[%emt 0:07:26]} ({Don't blunder} 21. Qxb7 $2 Rb8 22. Bg5 Qxg5 $19) 21... Qxd5 {[%emt 0:00:10]} 22. Nxe5 {[%emt 0:02:46]} Nxe5 {[%emt 0:06:22]} 23. Qd1 {[%emt 0:02:22]} (23. Nf5 $17) 23... Nc4 {[%emt 0:02:28]} (23... Rfe8 $19 {White must now prevent ...Rad8.} 24. Qb3 Qd7) 24. Rf5 {[%emt 0:03:08]} Nxe3 {[%emt 0:04:41][%csl Ge3][%cal Rd5g2]} 25. Rxd5 {[%emt 0:01:09]} Nxd1 {[%emt 0:00:04]} 26. Rxd1 {[%emt 0:00:33]} b6 {[%emt 0:00:41]} 27. Kf1 {[%emt 0:00:56]} Rad8 {[%emt 0:03:06]} 28. Nb3 {[%emt 0:00:29][%csl LRc5,LRd8]} Be7 {[%emt 0:02:07]} 29. Ke2 {[%emt 0:01:15]} Rfe8 {[%emt 0:00:48] aiming for ...a4.} 30. Rxd8 {[%emt 0:00:18]} Rxd8 {[%emt 0:02:11]} 31. Rxd8+ {[%emt 0:00:55]} Bxd8 {[%emt 0:00:04][%mdl 4096] Endgame KB-KN} 32. Kd3 {[%emt 0:00:32]} Kf8 {[%emt 0:00:04]} 33. Kc4 {[%emt 0:00:50]} Ke7 {[%emt 0:00:05]} 34. Kd5 {[%emt 0:00:33]} Kd7 {[%emt 0:02:01]} 35. Nd2 {[%emt 0:01:36]} h6 {[%emt 0:01:42][%cal Bh7h6,Bh6h5][%mdl 32]} 36. Nc4 {[%emt 0:00:41]} (36. g4 $17 {keeps fighting.}) 36... Bc7 $19 {[%emt 0:00:19]} 37. Ne3 {[%emt 0:00:48]} (37. Nd2 $142) 37... h5 $1 {[%emt 0:03:02]} 38. Nf5 {[%emt 0:02:33]} g6 {[%emt 0:00:18]} 39. Nh4 {[%emt 0:00:48]} Bd8 {[%emt 0:02:32]} 40. Nf3 {[%emt 0:00:21]} Bf6 {[%emt 0:00:44]} 41. Nd2 {[%emt 0:24:06]} Bd8 {[%emt 0:18:11]} 42. Nf3 $1 {[%emt 0:00:00] [#]} f6 $1 {[%emt 0:00:00]} 43. h3 {[%emt 0:00:00]} (43. Nh4 $17 {is a better defense.}) 43... Bc7 {[%emt 0:00:00]} 44. g4 {[%emt 0:00:00]} hxg4 {[%emt 0:00:00]} 45. hxg4 {[%emt 0:00:00] [#]} Bg3 $2 {[%emt 0:00:00]} (45... a4 $1 $19 {Strongly threatening ...Bf4.} 46. Ne1 Bg3) 46. Nd4 {[%emt 0:00:00]} (46. b3 $1 $11) 46... Bd6 {[%emt 0:00:00]} (46... a4 $17 {And now ...Bf4 would win.} 47. Ne2 Be5) 47. b3 $11 {[%emt 0:00:00] The position is equal.} Be5 {[%emt 0:00:00] Threatens to win with ...Bxd4.} 48. Ne2 {[%emt 0:00:00]} Bc7 {[%emt 0:00:00]} 49. Nd4 {[%emt 0:00:00]} Bd6 {[%emt 0:00:00]} 50. c4 {[%emt 0:00:00] Weighted Error Value: White=0.27 (precise) /Black=0.23 (precise)} 1/2-1/2

[Event "GER-ch Youth-U14 2022"]
[Site "Willingen"]
[Date "2022.06.07"]
[Round "4.8"]
[White "Luebke, Florentin"]
[Black "Sauer, Tim"]
[Result "1/2-1/2"]
[ECO "B38"]
[WhiteElo "1613"]
[BlackElo "1769"]
[Annotator "NA RC COMBH"]
[PlyCount "113"]
[EventDate "2022.06.05"]
[EventType "swiss"]
[EventRounds "9"]
[EventCountry "GER"]
[SourceTitle "playchess.com"]
[Source "ChessBase"]
[SourceQuality "1"]
[TimeControl "40/4500+30:900+30"]

1. e4 {[%emt 0:00:00]} c5 {[%emt 0:00:00]} 2. Nf3 {[%emt 0:00:00]} Nc6 {[%emt 0:00:00]} 3. d4 {[%emt 0:00:00]} cxd4 {[%emt 0:00:00]} 4. Nxd4 {[%emt 0:00:00]} g6 {[%emt 0:00:00]} 5. c4 {[%emt 0:00:00]} Bg7 {[%emt 0:00:00]} 6. Be3 {[%emt 0:00:00]} Nf6 {[%emt 0:00:00]} 7. Nc3 {[%emt 0:00:00]} O-O {[%emt 0:00:00]} 8. Be2 {[%emt 0:00:00]} d6 {[%emt 0:00:00]} 9. O-O {[%emt 0:00:00]} Bd7 {[%emt 0:00:00]} 10. Qd2 {[%emt 0:00:00]} Nxd4 {[%emt 0:00:00]} 11. Bxd4 {[%emt 0:00:00]} Bc6 {[%emt 0:00:00]} 12. f3 {[%emt 0:00:00]} Nd7 {[%emt 0:00:00]} 13. Rad1 {[%emt 0:00:00]} a5 {[%emt 0:00:00]} 14. Rfe1 {[%emt 0:00:00]} a4 {[%emt 0:00:00]} 15. f4 {[%emt 0:00:00]} Qa5 {[%emt 0:00:00]} 16. Bg4 {[%emt 0:06:14]} e5 {[%emt 0:19:01]} 17. Bf2 {[%emt 0:05:28]} f5 {[%emt 0:02:47]} 18. Bf3 {[%emt 0:02:14]} exf4 {[%emt 0:11:31]} 19. Qxd6 {[%emt 0:03:21]} Ne5 {[%emt 0:12:23]} 20. Nd5 {[%emt 0:03:31]} Kh8 {[%emt 0:12:03]} 21. Bb6 {[%emt 0:13:14]} Qa6 {[%emt 0:02:07]} 22. c5 {[%emt 0:08:14]} Qc4 {[%emt 0:01:41]} 23. Be2 {[%emt 0:08:25]} Qc2 {[%emt 0:03:04]} 24. Nb4 {[%emt 0:13:23]} Qxb2 {[%emt 0:03:39]} 25. Nxc6 {[%emt 0:02:12]} bxc6 {[%emt 0:03:16]} 26. Bf3 {[%emt 0:06:03]} Qc3 {[%emt 0:06:28]} 27. Kf2 {[%emt 0:03:16]} Nxf3 {[%emt 0:04:15]} 28. gxf3 {[%emt 0:00:12]} Rae8 {[%emt 0:02:11]} 29. Qd3 {[%emt 0:02:01]} Qf6 {[%emt 0:00:26]} 30. Bc7 {[%emt 0:00:52]} Qh4+ {[%emt 0:00:48]} 31. Kg2 {[%emt 0:00:28]} Qg5+ {[%emt 0:01:08]} 32. Kh1 {[%emt 0:00:23]} fxe4 {[%emt 0:00:36]} 33. Rxe4 {[%emt 0:00:15]} h6 {[%emt 0:01:57]} 34. Bd6 {[%emt 0:00:27]} Rg8 {[%emt 0:01:17]} 35. Rxf4 {[%emt 0:01:03]} h5 {[%emt 0:01:39]} 36. Rg1 {[%emt 0:01:30]} Qh6 {[%emt 0:00:20]} 37. Rxa4 {[%emt 0:02:10]} Re3 {[%emt 0:00:47]} 38. Qxg6 {[%emt 0:00:21]} Rxf3 {[%emt 0:00:32]} 39. Qxh6+ {[%emt 0:01:03]} Bxh6 {[%emt 0:00:01]} 40. Rxg8+ {[%emt 0:03:17]} Kxg8 {[%emt 0:00:02]} 41. Kg2 {[%emt 0:15:23]} Rd3 {[%emt 0:15:46]} 42. Ra6 {[%emt 0:00:24]} Kf7 {[%emt 0:00:38]} 43. a4 {[%emt 0:00:48]} Ra3 {[%emt 0:00:18]} 44. Ra7+ {[%emt 0:00:40]} Ke6 {[%emt 0:00:00]} 45. a5 {[%emt 0:00:00]} Bg5 {[%emt 0:00:00]} 46. a6 {[%emt 0:00:00]} Kd5 {[%emt 0:00:00]} 47. Rh7 {[%emt 0:00:00]} Ke6 {[%emt 0:00:00]} 48. a7 {[%emt 0:00:00]} h4 {[%emt 0:00:00]} 49. Kf2 {[%emt 0:00:00]} Bf6 {[%emt 0:00:00]} 50. Ke2 {[%emt 0:00:00]} Kd5 {[%emt 0:00:00]} 51. Rh6 {[%emt 0:00:00]} Ke6 {[%emt 0:00:00]} 52. Rh7 {[%emt 0:00:00]} Kd5 {[%emt 0:00:00]} 53. Rb7 {[%emt 0:00:00]} Bd4 {[%emt 0:00:00]} 54. Rh7 {[%emt 0:00:00]} Bxc5 {[%emt 0:00:00]} 55. Bb8 {[%emt 0:00:00]} Bd4 {[%emt 0:00:00]} 56. Rd7+ {[%emt 0:00:00]} Kc4 {[%emt 0:00:00]} 57. Rh7 {[%emt 0:00:00]} 1/2-1/2

[Event "GER-ch Youth-U14 2022"]
[Site "Willingen"]
[Date "2022.06.07"]
[Round "4.9"]
[White "Wunderlich, Elias"]
[Black "Sommer, Justus"]
[Result "0-1"]
[ECO "C67"]
[WhiteElo "1619"]
[BlackElo "1868"]
[Annotator "NA RC COMBH"]
[PlyCount "120"]
[EventDate "2022.06.05"]
[EventType "swiss"]
[EventRounds "9"]
[EventCountry "GER"]
[SourceTitle "playchess.com"]
[Source "ChessBase"]
[SourceQuality "1"]
[TimeControl "40/4500+30:900+30"]

1. e4 {[%emt 0:00:00]} e5 {[%emt 0:00:00]} 2. Nf3 {[%emt 0:00:00]} Nc6 {[%emt 0:00:00]} 3. Bb5 {[%emt 0:00:00]} Nf6 {[%emt 0:00:00]} 4. O-O {[%emt 0:00:00]} Nxe4 {[%emt 0:00:00]} 5. d4 {[%emt 0:00:00]} Nd6 {[%emt 0:00:00]} 6. Ba4 {[%emt 0:00:00]} exd4 {[%emt 0:01:15]} 7. Bxc6 {[%emt 0:00:00]} dxc6 {[%emt 0:00:43]} 8. Qxd4 {[%emt 0:00:00]} Nf5 {[%emt 0:06:13]} 9. Qxd8+ {[%emt 0:12:51]} Kxd8 {[%emt 0:01:08]} 10. Nc3 {[%emt 0:02:10]} Be7 {[%emt 0:04:12]} 11. Bf4 {[%emt 0:00:30]} Be6 {[%emt 0:04:39]} 12. Rad1+ {[%emt 0:01:26]} Kc8 {[%emt 0:01:47]} 13. a3 {[%emt 0:04:39]} b6 {[%emt 0:02:59]} 14. Rfe1 {[%emt 0:10:30]} Re8 {[%emt 0:06:31]} 15. Ne2 {[%emt 0:06:54]} (15. Ng5 $17) 15... Kb7 {[%emt 0:09:46]} 16. Ned4 {[%emt 0:00:33]} Nxd4 {[%emt 0:01:13]} 17. Nxd4 {[%emt 0:01:07]} Bd5 {[%emt 0:03:24]} 18. Be5 {[%emt 0:15:14]} f6 {[%emt 0:04:53]} 19. Bf4 {[%emt 0:00:58]} Bc5 {[%emt 0:01:53]} 20. Be3 {[%emt 0:00:36]} Be4 {[%emt 0:01:32]} 21. c4 {[%emt 0:00:52]} (21. f3 $17 Bg6 22. c3) 21... a5 {[%emt 0:04:37]} 22. Rd2 {[%emt 0:03:50]} Bg6 {[%emt 0:03:33]} 23. Red1 {[%emt 0:00:52]} Re4 {[%emt 0:01:13]} 24. Rd3 {[%emt 0:07:59]} Rae8 {[%emt 0:02:56]} 25. b3 {[%emt 0:03:13]} R4e7 {[%emt 0:05:42]} 26. R3d2 {[%emt 0:05:13]} Bxa3 {[%emt 0:01:48]} 27. Nf3 {[%emt 0:00:35]} Bb4 {[%emt 0:00:29]} 28. Rd7 {[%emt 0:00:25]} (28. Rb2 {was called for.}) 28... Bc2 {[%emt 0:01:51]} 29. Rxe7 {[%emt 0:00:32]} Rxe7 {[%emt 0:00:06]} 30. Rc1 {[%emt 0:00:03]} Bxb3 {[%emt 0:02:58]} 31. Nd4 {[%emt 0:00:04]} a4 {[%emt 0:00:21]} 32. Rb1 {[%emt 0:01:24]} Rd7 {[%emt 0:00:33]} 33. g3 {[%emt 0:00:40]} c5 {[%emt 0:03:15]} 34. Nxb3 {[%emt 0:00:03]} axb3 {[%emt 0:00:07]} 35. Rxb3 {[%emt 0:00:03]} Kc6 {[%emt 0:00:32]} 36. Kf1 {[%emt 0:00:25]} Bd2 {[%emt 0:00:21]} 37. Ke2 {[%emt 0:00:51]} Bxe3 {[%emt 0:00:15]} 38. fxe3 {[%emt 0:00:07]} Rd8 {[%emt 0:01:41]} 39. h4 {[%emt 0:00:46]} f5 {[%emt 0:00:51]} 40. Kf3 {[%emt 0:00:32]} Rd1 {[%emt 0:00:48]} 41. Kf4 {[%emt 0:15:52]} g6 {[%emt 0:15:58]} 42. h5 {[%emt 0:00:36]} Rc1 {[%emt 0:01:40]} 43. Kg5 {[%emt 0:04:17]} gxh5 {[%emt 0:01:19]} 44. Kxf5 {[%emt 0:00:21]} Rxc4 {[%emt 0:00:15]} 45. e4 $19 {[%emt 0:00:00]} Rc1 {[%emt 0:00:00]} 46. e5 {[%emt 0:00:00]} Rf1+ {[%emt 0:00:00]} 47. Ke6 {[%emt 0:00:00]} Re1 {[%emt 0:00:00]} 48. Kf6 {[%emt 0:00:00]} c4 {[%emt 0:00:00]} 49. Rb2 {[%emt 0:00:00]} b5 {[%emt 0:00:00]} 50. e6 {[%emt 0:00:00]} c3 {[%emt 0:00:00]} 51. Rb3 {[%emt 0:01:39]} Kd6 {[%emt 0:00:00]} 52. Rxc3 {[%emt 0:00:54]} Rxe6+ {[%emt 0:00:00]} 53. Kg5 {[%emt 0:01:20]} Re5+ {[%emt 0:00:00]} 54. Kh6 {[%emt 0:01:48]} b4 {[%emt 0:00:00]} 55. Rb3 {[%emt 0:00:52]} Kc5 {[%emt 0:00:00]} 56. Kxh7 {[%emt 0:00:21]} Kc4 {[%emt 0:00:00]} 57. Rb1 {[%emt 0:00:24]} c5 {[%emt 0:00:00]} 58. Kg6 {[%emt 0:00:28]} b3 {[%emt 0:00:00]} 59. Rf1 {[%emt 0:00:38]} b2 {[%emt 0:00:00]} 60. Kf6 {[%emt 0:01:22]} Re3 {[%emt 0:00:00]} 0-1

[Event "GER-ch Youth-U14 2022"]
[Site "Willingen"]
[Date "2022.06.07"]
[Round "4.10"]
[White "Honisch, Alexander"]
[Black "Mueller, Maximilian"]
[Result "1-0"]
[ECO "C72"]
[WhiteElo "1878"]
[BlackElo "2299"]
[Annotator "TA"]
[PlyCount "83"]
[EventDate "2022.06.05"]
[EventType "swiss"]
[EventRounds "9"]
[EventCountry "GER"]
[SourceTitle "playchess.com"]
[Source "ChessBase"]
[SourceQuality "1"]
[TimeControl "40/4500+30:900+30"]

{[%evp 10,83,34,35,39,33,45,38,39,19,39,24,28,31,58,54,57,57,47,47,53,51,72,70,73,60,64,54,93,50,73,73,91,95,141,126,117,109,107,86,81,77,73,25,104,90,115,110,125,25,26,17,20,53,28,0,129,112,115,101,1402,379,374,369,345,346,991,990,902,899,29972,29973,29966,29967,29993,1923]} 1. e4 {[%emt 0:00:00]} e5 {[%emt 0:00:00]} 2. Nf3 {[%emt 0:00:00]} Nc6 {[%emt 0:00:00]} 3. Bb5 {[%emt 0:00:00]} a6 {[%emt 0:00:00]} 4. Ba4 {[%emt 0:00:00]} d6 {[%emt 0:00:00]} 5. O-O {[%emt 0:00:00]} Bd7 {[%emt 0:00:00]} 6. c3 {[%emt 0:00:00]} g5 {[%emt 0:00:00] C72: Ruy Lopez: Deferred Steinitz: 5 0-0.} 7. d4 {[%emt 0:01:51]} g4 {[%emt 0:00:00]} 8. Ne1 {[%emt 0:02:10]} h5 {[%emt 0:00:00] White is slightly better.} 9. Be3 {[%emt 0:07:10]} Bg7 {[%emt 0:00:00]} 10. f4 {[%emt 0:05:21] aiming for fxe5.} exd4 {[%emt 0:00:00]} 11. cxd4 {[%emt 0:04:43]} d5 {[%emt 0:00:00]} 12. e5 {[%emt 0:08:17] [#]} Nh6 $146 {[%emt 0:00:00][%cal Og4g3]} ({Predecessor:} 12... Bh6 13. Bxc6 Bxc6 14. Qd2 f5 15. Nc3 Ne7 16. Nd3 b6 17. b4 Bb5 18. a4 Bc4 {1-0 (36) Potapov,P (2515)-Pridorozhni,A (2574) Khanty-Mansiysk 2018}) 13. Bxc6 {[%emt 0:01:51]} bxc6 {[%emt 0:00:00]} 14. Nd3 {[%emt 0:02:07]} Nf5 {[%emt 0:00:00]} 15. Qd2 {[%emt 0:01:26]} Rb8 {[%emt 0:00:00]} 16. Nc3 {[%cal Bb1c3,Bc3a4,Ba4c5][%mdl 32]} Rh6 17. Rac1 {[%emt 0:20:29]} Rg6 {[%emt 0:18:15]} 18. Rc2 {[%emt 0:03:19]} Qh4 {[%emt 0:01:19]} 19. Ne1 {[%emt 0:06:02]} Bh6 {[%emt 0:20:30]} 20. Na4 {[%emt 0:06:37]} (20. g3 Nxg3 $1 {[%mdl 512]} 21. hxg3 Qxg3+ 22. Ng2 Bf5 $17) 20... g3 {[%emt 0:18:18][%csl Gg3][%cal Rh4h2]} 21. h3 {[%emt 0:01:23]} Qe7 {[%emt 0:01:50]} (21... Bf8 $142) 22. Nc5 $16 {[%emt 0:01:25]} Bc8 {[%emt 0:00:03]} 23. Nf3 {[%emt 0:01:49]} Kf8 {[%emt 0:04:08]} 24. Nd3 {[%emt 0:01:51] Pair of Knights!} Kg8 {[%emt 0:02:15]} 25. Qe2 {[%emt 0:02:18]} a5 {[%emt 0:03:53]} 26. Rfc1 {[%emt 0:02:21]} (26. Rc5 $16) 26... Rb6 {[%emt 0:01:27]} (26... Ba6 $1 $11) 27. Qd2 {[%emt 0:02:19]} Nxe3 {[%emt 0:01:58]} 28. Qxe3 {[%emt 0:00:02]} Bf5 {[%emt 0:00:02]} 29. Re1 {[%emt 0:02:48]} ({White should try} 29. b3 $16) 29... Bxf4 $1 $11 {[%emt 0:05:11]} 30. Qxf4 {[%emt 0:01:47]} Bxd3 {[%emt 0:00:07]} 31. Rc3 {[%emt 0:00:49]} Be4 {[%emt 0:00:17]} 32. Re2 {[%emt 0:00:43] Black must now prevent Nh4.} Bb1 {[%emt 0:05:40]} (32... Bxf3 $11 33. Rxf3 c5) 33. a3 {[%emt 0:00:30]} ({Much less strong is} 33. Nh4 Rg7 $14) 33... a4 {[%emt 0:02:00]} 34. Nh4 {[%emt 0:00:30]} Rg4 {[%emt 0:00:07][%mdl 8192] [#] Black cannot hold the game after this.} 35. Rxg3 $1 {[%emt 0:00:29]} Rxg3 $18 {[%emt 0:01:18]} 36. Qxg3+ {[%emt 0:00:01]} Kf8 {[%emt 0:02:32] [#]} 37. e6 $1 {[%emt 0:00:50][%cal Oe6f7] And now exf7! would win.} ({Weaker is} 37. Rf2 c5 $16) 37... fxe6 {[%emt 0:00:58]} (37... c5 38. exf7 Qxf7) 38. Ng6+ {[%emt 0:00:22]} Bxg6 {[%emt 0:00:01]} 39. Qxg6 {[%emt 0:00:02] White threatens Rf2+ and mate.} Qg7 {[%emt 0:00:45]} 40. Rf2+ {[%emt 0:01:15] White mates.} Kg8 {[%emt 0:00:06]} 41. Qxe6+ {[%emt 0:00:00]} Kh8 {[%emt 0:00:00]} 42. Qe8+ {[%emt 0:00:00] Weighted Error Value: White=0.31/Black=0.46} (42. Rf5 $142 Qxd4+ 43. Kh2 Qg7 44. Rxh5+ Qh7 45. Qf6+ Kg8 46. Rg5+ Qg6 47. Rxg6+ Kh7 48. Qg7#) 1-0

[Event "GER-ch Youth-U14 2022"]
[Site "Willingen"]
[Date "2022.06.07"]
[Round "4.11"]
[White "Campora, Daniel H."]
[Black "Braeutigam, Alexander"]
[Result "1-0"]
[ECO "E25"]
[WhiteElo "2397"]
[BlackElo "1749"]
[Annotator "TA"]
[PlyCount "69"]
[EventDate "2022.06.05"]
[EventType "swiss"]
[EventRounds "9"]
[EventCountry "GER"]
[SourceTitle "playchess.com"]
[Source "ChessBase"]
[SourceQuality "1"]
[TimeControl "40/4500+30:900+30"]

{[%evp 14,69,8,0,72,83,79,83,93,61,64,60,66,53,52,45,56,39,87,38,80,60,120,122,112,114,152,116,123,125,467,479,484,491,469,479,567,570,694,679,718,710,700,689,1227,1205,1230,1228,1202,1188,1324,1207,29991,29992,29994,29983,29995,29996]} 1. d4 {[%emt 0:00:00]} Nf6 {[%emt 0:00:00]} 2. c4 {[%emt 0:00:00]} e6 {[%emt 0:00:00]} 3. Nc3 {[%emt 0:00:00]} Bb4 {[%emt 0:00:00]} 4. f3 {[%emt 0:00:00]} d5 {[%emt 0:00:00]} 5. a3 {[%emt 0:00:00]} Bxc3+ {[%emt 0:00:00]} 6. bxc3 {[%emt 0:00:00]} c5 {[%emt 0:00:00]} 7. cxd5 {[%emt 0:00:00]} Nxd5 {[%emt 0:00:00]} 8. dxc5 {[%emt 0:00:00]} O-O {[%emt 0:00:00] E25: Nimzo-Indian: Sämisch: 5...c5 6 f3 d5 7 cxd5.} ({Resist} 8... Nxc3 9. Qxd8+ Kxd8 10. Bb2 $16) (8... f5 $11) 9. e4 $16 {[%emt 0:00:00]} Ne7 {[%emt 0:00:00]} (9... Nxc3 $2 10. Qb3 Nxe4 11. fxe4 $18) 10. Qxd8 {[%emt 0:00:00]} Rxd8 {[%emt 0:00:00] [#] White is better.} 11. Rb1 $146 {[%emt 0:00:00]} ({Predecessor:} 11. Bf4 Nbc6 12. Bc7 Rd7 13. Bd6 b6 14. Rb1 Bb7 15. Bb5 Nc8 16. Bf4 bxc5 17. Ne2 Nb6 18. Be3 c4 19. Kf2 Rc7 20. Rhd1 Ne5 21. a4 Nc8 {½-½ (21) Ongut,T (2314)-Narayanan,S (2540) Chess.com INT 2021}) 11... Nd7 {[%emt 0:00:00]} 12. Be3 {[%emt 0:00:00]} b6 {[%emt 0:00:00]} 13. Rd1 {[%emt 0:14:01] [#] Threatens to win with cxb6. White is more active.} Bb7 {[%emt 0:00:00]} 14. cxb6 {[%emt 0:02:02]} Nxb6 {[%emt 0:00:00]} 15. Rb1 {[%emt 0:27:58]} Bc6 {[%emt 0:06:48] [#]} (15... Rac8 $14) 16. Ne2 {[%emt 0:02:30]} (16. Ba6 $1 $16) 16... e5 {[%emt 0:06:35]} 17. Ng3 {[%emt 0:08:17]} Rd7 {[%emt 0:04:28]} ({Black should play} 17... Na4 $14) 18. Kf2 {[%emt 0:02:17]} Na4 {[%emt 0:01:47]} 19. Rb3 {[%emt 0:03:26]} Rb7 {[%emt 0:01:18]} 20. Bc4 {[%emt 0:04:11][%cal Bf1c4,Bc4b3,Bb3d5][%mdl 32]} Rxb3 {[%emt 0:03:00]} 21. Bxb3 {[%emt 0:00:10] A strong pair of Bishops.} Nxc3 $2 {[%emt 0:06:16][%mdl 8192] This costs Black the game.} (21... Rc8 $16 22. Ne2 (22. Bxa7 Nxc3 23. Rc1 Ba4 $16) 22... a6) 22. Rc1 $18 {[%emt 0:01:03]} Nb5 {[%emt 0:00:19]} 23. Bg5 {[%emt 0:00:58]} Nd4 {[%emt 0:03:59]} 24. Bxe7 {[%emt 0:00:27]} Rb8 {[%emt 0:00:24]} 25. Bd5 {[%emt 0:01:27]} Rb2+ {[%emt 0:00:37]} 26. Kg1 {[%emt 0:00:44]} Bd7 {[%emt 0:02:22][%cal Od7h3]} 27. Rc7 {[%emt 0:00:30][%csl LRa7,LRd7]} Rb1+ {[%emt 0:00:12]} 28. Nf1 {[%emt 0:00:15]} Ne2+ {[%emt 0:00:32]} 29. Kf2 {[%emt 0:00:09]} Rb2 {[%emt 0:00:40]} 30. Rxd7 {[%emt 0:01:18][%cal Rd7d8]} Nf4+ {[%emt 0:00:11]} 31. Kg1 {[%emt 0:00:24][%cal Rd7d8]} ({And not} 31. Ke1 Nd3+ 32. Kd1 Nf2+ 33. Ke1 Nd3+ 34. Kd1 Nf2+ 35. Ke1 Nd3+ $11) 31... Rxg2+ {[%emt 0:00:22]} 32. Kh1 {[%emt 0:00:04][%cal Rd7d8]} g5 {[%emt 0:00:24]} 33. Bf6 {[%emt 0:00:30][%cal Rd7d8] White mates.} h6 {[%emt 0:00:21]} 34. Rd8+ {[%emt 0:00:24]} Kh7 {[%emt 0:00:13]} 35. Bxf7 {[%emt 0:00:08] Weighted Error Value: White=0.11 (very precise) /Black=0.62} 1-0

[Event "GER-ch Youth-U14 2022"]
[Site "Willingen"]
[Date "2022.06.07"]
[Round "4.12"]
[White "Linnemann, Caspar"]
[Black "Kocharin, Timur"]
[Result "0-1"]
[ECO "B35"]
[WhiteElo "1720"]
[BlackElo "1867"]
[Annotator "NA RC COMBH"]
[PlyCount "80"]
[EventDate "2022.06.05"]
[EventType "swiss"]
[EventRounds "9"]
[EventCountry "GER"]
[SourceTitle "playchess.com"]
[Source "ChessBase"]
[SourceQuality "1"]
[TimeControl "40/4500+30:900+30"]

1. e4 {[%emt 0:00:00]} c5 {[%emt 0:00:00]} 2. Nf3 {[%emt 0:00:00]} Nc6 {[%emt 0:00:00]} 3. d4 {[%emt 0:00:00]} cxd4 {[%emt 0:00:00]} 4. Nxd4 {[%emt 0:00:00]} g6 {[%emt 0:00:00]} 5. Nc3 {[%emt 0:00:00]} Bg7 {[%emt 0:00:00]} 6. Be3 {[%emt 0:00:00]} Nf6 {[%emt 0:00:00]} 7. Bc4 {[%emt 0:00:00]} O-O {[%emt 0:00:00]} 8. Bb3 {[%emt 0:00:00]} Re8 {[%emt 0:00:00]} 9. f3 {[%emt 0:00:00]} e6 {[%emt 0:00:00]} 10. Qd2 {[%emt 0:01:41]} d5 {[%emt 0:00:00]} 11. exd5 {[%emt 0:01:37]} Nxd5 {[%emt 0:09:11]} 12. Nxd5 {[%emt 0:08:01]} Nxd4 {[%emt 0:04:29]} 13. Bxd4 {[%emt 0:13:44]} Qh4+ {[%emt 0:24:59]} 14. Bf2 {[%emt 0:06:10]} (14. Kf1 $11 exd5 15. Bxg7 Kxg7 16. Bxd5) 14... exd5+ {[%emt 0:00:26]} 15. Kf1 {[%emt 0:02:42]} Qf6 {[%emt 0:01:34]} 16. c3 {[%emt 0:03:53]} ({Better is} 16. Rd1 $15) 16... Qa6+ {[%emt 0:00:58]} 17. Kg1 {[%emt 0:03:08] [#]} Re2 $1 {[%emt 0:00:56]} 18. Qxd5 {[%emt 0:03:58]} (18. Qf4 {was called for.}) 18... Be6 {[%emt 0:00:21]} 19. Qd1 {[%emt 0:00:24]} Rxb2 {[%emt 0:04:12]} 20. Rb1 {[%emt 0:14:25]} Bxb3 {[%emt 0:09:36]} ({And not} 20... Bxc3 21. Rxb2 Bxb2 22. g4 $17) 21. axb3 {[%emt 0:00:23]} Rxb1 {[%emt 0:03:47]} ({Not} 21... Bxc3 22. Rxb2 Bxb2 23. g3 $17) 22. Qxb1 {[%emt 0:00:55]} Qe2 {[%emt 0:00:32]} 23. Qe1 {[%emt 0:06:08]} Qc2 {[%emt 0:01:02]} 24. g3 {[%emt 0:03:31]} Rd8 {[%emt 0:04:39]} 25. Kg2 {[%emt 0:00:26]} Bxc3 {[%emt 0:00:35]} 26. Qe7 {[%emt 0:02:02]} Rd2 {[%emt 0:00:50]} 27. Rf1 $19 {[%emt 0:00:24]} Bd4 {[%emt 0:00:15]} 28. Qe8+ {[%emt 0:00:27]} Kg7 {[%emt 0:00:03]} 29. Qe1 {[%emt 0:00:13]} Kf6 {[%emt 0:00:19]} 30. f4 {[%emt 0:00:42]} Rxf2+ {[%emt 0:00:08]} 31. Rxf2 {[%emt 0:00:12]} Qxf2+ {[%emt 0:00:04]} 32. Qxf2 {[%emt 0:00:07]} Bxf2 {[%emt 0:00:03]} 33. Kxf2 {[%emt 0:00:07]} a5 {[%emt 0:00:11]} 34. g4 {[%emt 0:00:19]} Ke6 {[%emt 0:00:07]} 35. Ke3 {[%emt 0:00:10]} Kd5 {[%emt 0:00:04]} 36. Kd3 {[%emt 0:00:12]} b5 {[%emt 0:00:03]} 37. h3 {[%emt 0:00:12]} a4 {[%emt 0:00:03]} 38. bxa4 {[%emt 0:00:08]} bxa4 {[%emt 0:00:03]} 39. Kc3 {[%emt 0:00:07]} Ke4 {[%emt 0:00:03]} 40. Kb4 {[%emt 0:00:07]} Kxf4 {[%emt 0:00:05]} 0-1